{"text_format":"3","workbook":"xlsx","n_sheets":4,"sheets":["PERTANDINGAN","KALENDER","VERSI CETAK","ADMIN"],"not_rendered":{"defined_names":18},"read":"whole","date_system":"1900"}

{"sheet":"PERTANDINGAN","index":0,"n_rows":38,"n_cols":5,"rows_kept":38}
[]
[null,"PERENCANA ACARA"]
[null,"KOMUNITAS BULANAN"]
[]
[]
[]
[]
[null,"TANGGAL","HARI","BULAN","NAMA ACARA"]
[null,"2016-07-01",{"$f":"IF(ISBLANK(tblEvents[[#This Row],[TANGGAL]]),\"\",UPPER(TEXT(tblEvents[[#This Row],[TANGGAL]],\"[$-421]ddd\")))","v":"JUM"},{"$f":"IF(ISBLANK(tblEvents[[#This Row],[TANGGAL]]),\"\",UPPER(TEXT(tblEvents[[#This Row],[TANGGAL]],\"[$-421]mmm\")))","v":"JUL"},"Kebun Komunitas"]
[null,"2016-07-01",{"$f":"IF(ISBLANK(tblEvents[[#This Row],[TANGGAL]]),\"\",UPPER(TEXT(tblEvents[[#This Row],[TANGGAL]],\"[$-421]ddd\")))","v":"JUM"},{"$f":"IF(ISBLANK(tblEvents[[#This Row],[TANGGAL]]),\"\",UPPER(TEXT(tblEvents[[#This Row],[TANGGAL]],\"[$-421]mmm\")))","v":"JUL"},"Dewan Kota"]
[null,"2016-07-02",{"$f":"IF(ISBLANK(tblEvents[[#This Row],[TANGGAL]]),\"\",UPPER(TEXT(tblEvents[[#This Row],[TANGGAL]],\"[$-421]ddd\")))","v":"SAB"},{"$f":"IF(ISBLANK(tblEvents[[#This Row],[TANGGAL]]),\"\",UPPER(TEXT(tblEvents[[#This Row],[TANGGAL]],\"[$-421]mmm\")))","v":"JUL"},"Kebun Komunitas"]
[null,"2016-07-03",{"$f":"IF(ISBLANK(tblEvents[[#This Row],[TANGGAL]]),\"\",UPPER(TEXT(tblEvents[[#This Row],[TANGGAL]],\"[$-421]ddd\")))","v":"MGG"},{"$f":"IF(ISBLANK(tblEvents[[#This Row],[TANGGAL]]),\"\",UPPER(TEXT(tblEvents[[#This Row],[TANGGAL]],\"[$-421]mmm\")))","v":"JUL"},"Malam Film di Taman"]
[null,"2016-07-08",{"$f":"IF(ISBLANK(tblEvents[[#This Row],[TANGGAL]]),\"\",UPPER(TEXT(tblEvents[[#This Row],[TANGGAL]],\"[$-421]ddd\")))","v":"JUM"},{"$f":"IF(ISBLANK(tblEvents[[#This Row],[TANGGAL]]),\"\",UPPER(TEXT(tblEvents[[#This Row],[TANGGAL]],\"[$-421]mmm\")))","v":"JUL"},"Dewan Kota"]
[null,"2016-07-11",{"$f":"IF(ISBLANK(tblEvents[[#This Row],[TANGGAL]]),\"\",UPPER(TEXT(tblEvents[[#This Row],[TANGGAL]],\"[$-421]ddd\")))","v":"SEN"},{"$f":"IF(ISBLANK(tblEvents[[#This Row],[TANGGAL]]),\"\",UPPER(TEXT(tblEvents[[#This Row],[TANGGAL]],\"[$-421]mmm\")))","v":"JUL"},"Makan Siang Kamar Dagang"]
[null,"2016-07-12",{"$f":"IF(ISBLANK(tblEvents[[#This Row],[TANGGAL]]),\"\",UPPER(TEXT(tblEvents[[#This Row],[TANGGAL]],\"[$-421]ddd\")))","v":"SEL"},{"$f":"IF(ISBLANK(tblEvents[[#This Row],[TANGGAL]]),\"\",UPPER(TEXT(tblEvents[[#This Row],[TANGGAL]],\"[$-421]mmm\")))","v":"JUL"},"Pameran Barang Antik"]
[null,"2016-07-14",{"$f":"IF(ISBLANK(tblEvents[[#This Row],[TANGGAL]]),\"\",UPPER(TEXT(tblEvents[[#This Row],[TANGGAL]],\"[$-421]ddd\")))","v":"KAM"},{"$f":"IF(ISBLANK(tblEvents[[#This Row],[TANGGAL]]),\"\",UPPER(TEXT(tblEvents[[#This Row],[TANGGAL]],\"[$-421]mmm\")))","v":"JUL"},"Lokakarya Komunitas"]
[null,"2016-07-15",{"$f":"IF(ISBLANK(tblEvents[[#This Row],[TANGGAL]]),\"\",UPPER(TEXT(tblEvents[[#This Row],[TANGGAL]],\"[$-421]ddd\")))","v":"JUM"},{"$f":"IF(ISBLANK(tblEvents[[#This Row],[TANGGAL]]),\"\",UPPER(TEXT(tblEvents[[#This Row],[TANGGAL]],\"[$-421]mmm\")))","v":"JUL"},"Dewan Kota"]
[null,"2016-07-19",{"$f":"IF(ISBLANK(tblEvents[[#This Row],[TANGGAL]]),\"\",UPPER(TEXT(tblEvents[[#This Row],[TANGGAL]],\"[$-421]ddd\")))","v":"SEL"},{"$f":"IF(ISBLANK(tblEvents[[#This Row],[TANGGAL]]),\"\",UPPER(TEXT(tblEvents[[#This Row],[TANGGAL]],\"[$-421]mmm\")))","v":"JUL"},"Lokakarya Perencanaan Strategis"]
[null,"2016-07-20",{"$f":"IF(ISBLANK(tblEvents[[#This Row],[TANGGAL]]),\"\",UPPER(TEXT(tblEvents[[#This Row],[TANGGAL]],\"[$-421]ddd\")))","v":"RAB"},{"$f":"IF(ISBLANK(tblEvents[[#This Row],[TANGGAL]]),\"\",UPPER(TEXT(tblEvents[[#This Row],[TANGGAL]],\"[$-421]mmm\")))","v":"JUL"},"Pembersihan Taman"]
[null,"2016-07-22",{"$f":"IF(ISBLANK(tblEvents[[#This Row],[TANGGAL]]),\"\",UPPER(TEXT(tblEvents[[#This Row],[TANGGAL]],\"[$-421]ddd\")))","v":"JUM"},{"$f":"IF(ISBLANK(tblEvents[[#This Row],[TANGGAL]]),\"\",UPPER(TEXT(tblEvents[[#This Row],[TANGGAL]],\"[$-421]mmm\")))","v":"JUL"},"Dewan Kota"]
[null,"2016-07-26",{"$f":"IF(ISBLANK(tblEvents[[#This Row],[TANGGAL]]),\"\",UPPER(TEXT(tblEvents[[#This Row],[TANGGAL]],\"[$-421]ddd\")))","v":"SEL"},{"$f":"IF(ISBLANK(tblEvents[[#This Row],[TANGGAL]]),\"\",UPPER(TEXT(tblEvents[[#This Row],[TANGGAL]],\"[$-421]mmm\")))","v":"JUL"},"Tur Jalan Kaki Pusat Kota"]
[null,"2016-07-26",{"$f":"IF(ISBLANK(tblEvents[[#This Row],[TANGGAL]]),\"\",UPPER(TEXT(tblEvents[[#This Row],[TANGGAL]],\"[$-421]ddd\")))","v":"SEL"},{"$f":"IF(ISBLANK(tblEvents[[#This Row],[TANGGAL]]),\"\",UPPER(TEXT(tblEvents[[#This Row],[TANGGAL]],\"[$-421]mmm\")))","v":"JUL"},"Perayapan Pub"]
[null,"2016-07-29",{"$f":"IF(ISBLANK(tblEvents[[#This Row],[TANGGAL]]),\"\",UPPER(TEXT(tblEvents[[#This Row],[TANGGAL]],\"[$-421]ddd\")))","v":"JUM"},{"$f":"IF(ISBLANK(tblEvents[[#This Row],[TANGGAL]]),\"\",UPPER(TEXT(tblEvents[[#This Row],[TANGGAL]],\"[$-421]mmm\")))","v":"JUL"},"Dewan Kota"]
[null,"2016-08-05",{"$f":"IF(ISBLANK(tblEvents[[#This Row],[TANGGAL]]),\"\",UPPER(TEXT(tblEvents[[#This Row],[TANGGAL]],\"[$-421]ddd\")))","v":"JUM"},{"$f":"IF(ISBLANK(tblEvents[[#This Row],[TANGGAL]]),\"\",UPPER(TEXT(tblEvents[[#This Row],[TANGGAL]],\"[$-421]mmm\")))","v":"AGU"},"Dewan Kota"]
[null,"2016-08-10",{"$f":"IF(ISBLANK(tblEvents[[#This Row],[TANGGAL]]),\"\",UPPER(TEXT(tblEvents[[#This Row],[TANGGAL]],\"[$-421]ddd\")))","v":"RAB"},{"$f":"IF(ISBLANK(tblEvents[[#This Row],[TANGGAL]]),\"\",UPPER(TEXT(tblEvents[[#This Row],[TANGGAL]],\"[$-421]mmm\")))","v":"AGU"},"Pembersihan Taman"]
[null,"2016-08-12",{"$f":"IF(ISBLANK(tblEvents[[#This Row],[TANGGAL]]),\"\",UPPER(TEXT(tblEvents[[#This Row],[TANGGAL]],\"[$-421]ddd\")))","v":"JUM"},{"$f":"IF(ISBLANK(tblEvents[[#This Row],[TANGGAL]]),\"\",UPPER(TEXT(tblEvents[[#This Row],[TANGGAL]],\"[$-421]mmm\")))","v":"AGU"},"Dewan Kota"]
[null,"2016-08-13",{"$f":"IF(ISBLANK(tblEvents[[#This Row],[TANGGAL]]),\"\",UPPER(TEXT(tblEvents[[#This Row],[TANGGAL]],\"[$-421]ddd\")))","v":"SAB"},{"$f":"IF(ISBLANK(tblEvents[[#This Row],[TANGGAL]]),\"\",UPPER(TEXT(tblEvents[[#This Row],[TANGGAL]],\"[$-421]mmm\")))","v":"AGU"},"Kebun Komunitas"]
[null,"2016-09-01",{"$f":"IF(ISBLANK(tblEvents[[#This Row],[TANGGAL]]),\"\",UPPER(TEXT(tblEvents[[#This Row],[TANGGAL]],\"[$-421]ddd\")))","v":"KAM"},{"$f":"IF(ISBLANK(tblEvents[[#This Row],[TANGGAL]]),\"\",UPPER(TEXT(tblEvents[[#This Row],[TANGGAL]],\"[$-421]mmm\")))","v":"SEP"},"Komite Anggaran"]
[null,"2016-10-01",{"$f":"IF(ISBLANK(tblEvents[[#This Row],[TANGGAL]]),\"\",UPPER(TEXT(tblEvents[[#This Row],[TANGGAL]],\"[$-421]ddd\")))","v":"SAB"},{"$f":"IF(ISBLANK(tblEvents[[#This Row],[TANGGAL]]),\"\",UPPER(TEXT(tblEvents[[#This Row],[TANGGAL]],\"[$-421]mmm\")))","v":"OKT"},"Komite Anggaran"]
[null,"2016-11-03",{"$f":"IF(ISBLANK(tblEvents[[#This Row],[TANGGAL]]),\"\",UPPER(TEXT(tblEvents[[#This Row],[TANGGAL]],\"[$-421]ddd\")))","v":"KAM"},{"$f":"IF(ISBLANK(tblEvents[[#This Row],[TANGGAL]]),\"\",UPPER(TEXT(tblEvents[[#This Row],[TANGGAL]],\"[$-421]mmm\")))","v":"NOV"},"Komite Anggaran"]
[null,"2016-12-01",{"$f":"IF(ISBLANK(tblEvents[[#This Row],[TANGGAL]]),\"\",UPPER(TEXT(tblEvents[[#This Row],[TANGGAL]],\"[$-421]ddd\")))","v":"KAM"},{"$f":"IF(ISBLANK(tblEvents[[#This Row],[TANGGAL]]),\"\",UPPER(TEXT(tblEvents[[#This Row],[TANGGAL]],\"[$-421]mmm\")))","v":"DES"},"Komite Anggaran"]
[null,"2017-01-01",{"$f":"IF(ISBLANK(tblEvents[[#This Row],[TANGGAL]]),\"\",UPPER(TEXT(tblEvents[[#This Row],[TANGGAL]],\"[$-421]ddd\")))","v":"MGG"},{"$f":"IF(ISBLANK(tblEvents[[#This Row],[TANGGAL]]),\"\",UPPER(TEXT(tblEvents[[#This Row],[TANGGAL]],\"[$-421]mmm\")))","v":"JAN"},"Komite Anggaran"]
[null,"2017-02-02",{"$f":"IF(ISBLANK(tblEvents[[#This Row],[TANGGAL]]),\"\",UPPER(TEXT(tblEvents[[#This Row],[TANGGAL]],\"[$-421]ddd\")))","v":"KAM"},{"$f":"IF(ISBLANK(tblEvents[[#This Row],[TANGGAL]]),\"\",UPPER(TEXT(tblEvents[[#This Row],[TANGGAL]],\"[$-421]mmm\")))","v":"FEB"},"Komite Anggaran"]
[null,"2017-03-02",{"$f":"IF(ISBLANK(tblEvents[[#This Row],[TANGGAL]]),\"\",UPPER(TEXT(tblEvents[[#This Row],[TANGGAL]],\"[$-421]ddd\")))","v":"KAM"},{"$f":"IF(ISBLANK(tblEvents[[#This Row],[TANGGAL]]),\"\",UPPER(TEXT(tblEvents[[#This Row],[TANGGAL]],\"[$-421]mmm\")))","v":"MAR"},"Komite Anggaran"]
[null,"2017-04-01",{"$f":"IF(ISBLANK(tblEvents[[#This Row],[TANGGAL]]),\"\",UPPER(TEXT(tblEvents[[#This Row],[TANGGAL]],\"[$-421]ddd\")))","v":"SAB"},{"$f":"IF(ISBLANK(tblEvents[[#This Row],[TANGGAL]]),\"\",UPPER(TEXT(tblEvents[[#This Row],[TANGGAL]],\"[$-421]mmm\")))","v":"APR"},"Komite Anggaran"]
[null,"2017-05-01",{"$f":"IF(ISBLANK(tblEvents[[#This Row],[TANGGAL]]),\"\",UPPER(TEXT(tblEvents[[#This Row],[TANGGAL]],\"[$-421]ddd\")))","v":"SEN"},{"$f":"IF(ISBLANK(tblEvents[[#This Row],[TANGGAL]]),\"\",UPPER(TEXT(tblEvents[[#This Row],[TANGGAL]],\"[$-421]mmm\")))","v":"MEI"},"Komite Anggaran"]
[null,"2017-06-01",{"$f":"IF(ISBLANK(tblEvents[[#This Row],[TANGGAL]]),\"\",UPPER(TEXT(tblEvents[[#This Row],[TANGGAL]],\"[$-421]ddd\")))","v":"KAM"},{"$f":"IF(ISBLANK(tblEvents[[#This Row],[TANGGAL]]),\"\",UPPER(TEXT(tblEvents[[#This Row],[TANGGAL]],\"[$-421]mmm\")))","v":"JUN"},"Komite Anggaran"]
[null,"2017-06-02",{"$f":"IF(ISBLANK(tblEvents[[#This Row],[TANGGAL]]),\"\",UPPER(TEXT(tblEvents[[#This Row],[TANGGAL]],\"[$-421]ddd\")))","v":"JUM"},{"$f":"IF(ISBLANK(tblEvents[[#This Row],[TANGGAL]]),\"\",UPPER(TEXT(tblEvents[[#This Row],[TANGGAL]],\"[$-421]mmm\")))","v":"JUN"},"Dewan Kota"]

{"sheet":"KALENDER","index":1,"n_rows":35,"n_cols":21,"rows_kept":35,"merged":[[1,5,1,11],[30,8,34,20]]}
[]
[null,null,2016,null,null,{"$f":"LOOKUP(MonthNum,tblMonths[NUMBER],tblMonths[MONTH])","v":"JULI"}]
[null,null,7,null,null,{"$f":"DATE(ViewYear,MonthNum,1)","v":"2016-07-01"},null,null,{"$f":"WEEKDAY(StartDate)","v":6}]
[null,null,"SEN",null,null,"SEL",null,null,"RAB",null,null,"KAM",null,null,"JUM",null,null,"SAB",null,null,"MIN"]
[]
[null,null,{"$f":"StartDate-(WEEKDAY(StartDate,2))+{0;1;2;3;4;5}*7 +{2,3,4,5,6,7,1}-3+COLUMN(B1)","v":"2016-06-27"},null,null,{"$f":"StartDate-(WEEKDAY(StartDate,2))+{0;1;2;3;4;5}*7 +{2,3,4,5,6,7,1}-3+COLUMN(C1)","v":"2016-06-28"},null,null,{"$f":"StartDate-(WEEKDAY(StartDate,2))+{0;1;2;3;4;5}*7 +{2,3,4,5,6,7,1}-3+COLUMN(D1)","v":"2016-06-29"},null,null,{"$f":"StartDate-(WEEKDAY(StartDate,2))+{0;1;2;3;4;5}*7 +{2,3,4,5,6,7,1}-3+COLUMN(E1)","v":"2016-06-30"},null,null,{"$f":"StartDate-(WEEKDAY(StartDate,2))+{0;1;2;3;4;5}*7 +{2,3,4,5,6,7,1}-3+COLUMN(F1)","v":"2016-07-01"},null,null,{"$f":"StartDate-(WEEKDAY(StartDate,2))+{0;1;2;3;4;5}*7 +{2,3,4,5,6,7,1}-3+COLUMN(G1)","v":"2016-07-02"},null,null,{"$f":"StartDate-(WEEKDAY(StartDate,2))+{0;1;2;3;4;5}*7 +{2,3,4,5,6,7,1}-3+COLUMN(H1)","v":"2016-07-03"}]
[null,null,{"$f":"IFERROR(INDEX(tblEvents[],SMALL(IF(Dates=C$6,ROW(Dates)),ROW(1:1))-TableRowStart,4),\"\")","v":""},null,null,{"$f":"IFERROR(INDEX(tblEvents[],SMALL(IF(Dates=F$6,ROW(Dates)),ROW(1:1))-TableRowStart,4),\"\")","v":""},null,null,{"$f":"IFERROR(INDEX(tblEvents[],SMALL(IF(Dates=I$6,ROW(Dates)),ROW(1:1))-TableRowStart,4),\"\")","v":""},null,null,{"$f":"IFERROR(INDEX(tblEvents[],SMALL(IF(Dates=L$6,ROW(Dates)),ROW(1:1))-TableRowStart,4),\"\")","v":""},null,null,{"$f":"IFERROR(INDEX(tblEvents[],SMALL(IF(Dates=O$6,ROW(Dates)),ROW(1:1))-TableRowStart,4),\"\")","v":"Kebun Komunitas"},null,null,{"$f":"IFERROR(INDEX(tblEvents[],SMALL(IF(Dates=R$6,ROW(Dates)),ROW(1:1))-TableRowStart,4),\"\")","v":"Kebun Komunitas"},null,null,{"$f":"IFERROR(INDEX(tblEvents[],SMALL(IF(Dates=U$6,ROW(Dates)),ROW(1:1))-TableRowStart,4),\"\")","v":"Malam Film di Taman"}]
[null,null,{"$f":"IFERROR(INDEX(tblEvents[],SMALL(IF(Dates=C$6,ROW(Dates)),ROW(2:2))-TableRowStart,4),\"\")","v":""},null,null,{"$f":"IFERROR(INDEX(tblEvents[],SMALL(IF(Dates=F$6,ROW(Dates)),ROW(2:2))-TableRowStart,4),\"\")","v":""},null,null,{"$f":"IFERROR(INDEX(tblEvents[],SMALL(IF(Dates=I$6,ROW(Dates)),ROW(2:2))-TableRowStart,4),\"\")","v":""},null,null,{"$f":"IFERROR(INDEX(tblEvents[],SMALL(IF(Dates=L$6,ROW(Dates)),ROW(2:2))-TableRowStart,4),\"\")","v":""},null,null,{"$f":"IFERROR(INDEX(tblEvents[],SMALL(IF(Dates=O$6,ROW(Dates)),ROW(2:2))-TableRowStart,4),\"\")","v":"Dewan Kota"},null,null,{"$f":"IFERROR(INDEX(tblEvents[],SMALL(IF(Dates=R$6,ROW(Dates)),ROW(2:2))-TableRowStart,4),\"\")","v":""},null,null,{"$f":"IFERROR(INDEX(tblEvents[],SMALL(IF(Dates=U$6,ROW(Dates)),ROW(2:2))-TableRowStart,4),\"\")","v":""}]
[null,null,{"$f":"IFERROR(INDEX(tblEvents[],SMALL(IF(Dates=C$6,ROW(Dates)),ROW(3:3))-TableRowStart,4),\"\")","v":""},null,null,{"$f":"IFERROR(INDEX(tblEvents[],SMALL(IF(Dates=F$6,ROW(Dates)),ROW(3:3))-TableRowStart,4),\"\")","v":""},null,null,{"$f":"IFERROR(INDEX(tblEvents[],SMALL(IF(Dates=I$6,ROW(Dates)),ROW(3:3))-TableRowStart,4),\"\")","v":""},null,null,{"$f":"IFERROR(INDEX(tblEvents[],SMALL(IF(Dates=L$6,ROW(Dates)),ROW(3:3))-TableRowStart,4),\"\")","v":""},null,null,{"$f":"IFERROR(INDEX(tblEvents[],SMALL(IF(Dates=O$6,ROW(Dates)),ROW(3:3))-TableRowStart,4),\"\")","v":""},null,null,{"$f":"IFERROR(INDEX(tblEvents[],SMALL(IF(Dates=R$6,ROW(Dates)),ROW(3:3))-TableRowStart,4),\"\")","v":""},null,null,{"$f":"IFERROR(INDEX(tblEvents[],SMALL(IF(Dates=U$6,ROW(Dates)),ROW(3:3))-TableRowStart,4),\"\")","v":""}]
[null,null,{"$f":"IFERROR(INDEX(tblEvents[],SMALL(IF(Dates=C$6,ROW(Dates)),ROW(#REF!))-TableRowStart,4),\"\")","v":""},null,null,{"$f":"IFERROR(INDEX(tblEvents[],SMALL(IF(Dates=F$6,ROW(Dates)),ROW(#REF!))-TableRowStart,4),\"\")","v":""},null,null,{"$f":"IFERROR(INDEX(tblEvents[],SMALL(IF(Dates=I$6,ROW(Dates)),ROW(#REF!))-TableRowStart,4),\"\")","v":""},null,null,{"$f":"IFERROR(INDEX(tblEvents[],SMALL(IF(Dates=L$6,ROW(Dates)),ROW(#REF!))-TableRowStart,4),\"\")","v":""},null,null,{"$f":"IFERROR(INDEX(tblEvents[],SMALL(IF(Dates=O$6,ROW(Dates)),ROW(#REF!))-TableRowStart,4),\"\")","v":""},null,null,{"$f":"IFERROR(INDEX(tblEvents[],SMALL(IF(Dates=R$6,ROW(Dates)),ROW(#REF!))-TableRowStart,4),\"\")","v":""},null,null,{"$f":"IFERROR(INDEX(tblEvents[],SMALL(IF(Dates=U$6,ROW(Dates)),ROW(#REF!))-TableRowStart,4),\"\")","v":""}]
[null,null,{"$f":"U6+1","v":"2016-07-04"},null,null,{"$f":"C11+1","v":"2016-07-05"},null,null,{"$f":"F11+1","v":"2016-07-06"},null,null,{"$f":"I11+1","v":"2016-07-07"},null,null,{"$f":"L11+1","v":"2016-07-08"},null,null,{"$f":"O11+1","v":"2016-07-09"},null,null,{"$f":"R11+1","v":"2016-07-10"}]
[null,null,{"$f":"IFERROR(INDEX(tblEvents[],SMALL(IF(Dates=C$11,ROW(Dates)),ROW(1:1))-TableRowStart,4),\"\")","v":""},null,null,{"$f":"IFERROR(INDEX(tblEvents[],SMALL(IF(Dates=F$11,ROW(Dates)),ROW(1:1))-TableRowStart,4),\"\")","v":""},null,null,{"$f":"IFERROR(INDEX(tblEvents[],SMALL(IF(Dates=I$11,ROW(Dates)),ROW(1:1))-TableRowStart,4),\"\")","v":""},null,null,{"$f":"IFERROR(INDEX(tblEvents[],SMALL(IF(Dates=L$11,ROW(Dates)),ROW(1:1))-TableRowStart,4),\"\")","v":""},null,null,{"$f":"IFERROR(INDEX(tblEvents[],SMALL(IF(Dates=O$11,ROW(Dates)),ROW(1:1))-TableRowStart,4),\"\")","v":"Dewan Kota"},null,null,{"$f":"IFERROR(INDEX(tblEvents[],SMALL(IF(Dates=R$11,ROW(Dates)),ROW(1:1))-TableRowStart,4),\"\")","v":""},null,null,{"$f":"IFERROR(INDEX(tblEvents[],SMALL(IF(Dates=U$11,ROW(Dates)),ROW(1:1))-TableRowStart,4),\"\")","v":""}]
[null,null,{"$f":"IFERROR(INDEX(tblEvents[],SMALL(IF(Dates=C$11,ROW(Dates)),ROW(2:2))-TableRowStart,4),\"\")","v":""},null,null,{"$f":"IFERROR(INDEX(tblEvents[],SMALL(IF(Dates=F$11,ROW(Dates)),ROW(2:2))-TableRowStart,4),\"\")","v":""},null,null,{"$f":"IFERROR(INDEX(tblEvents[],SMALL(IF(Dates=I$11,ROW(Dates)),ROW(2:2))-TableRowStart,4),\"\")","v":""},null,null,{"$f":"IFERROR(INDEX(tblEvents[],SMALL(IF(Dates=L$11,ROW(Dates)),ROW(2:2))-TableRowStart,4),\"\")","v":""},null,null,{"$f":"IFERROR(INDEX(tblEvents[],SMALL(IF(Dates=O$11,ROW(Dates)),ROW(2:2))-TableRowStart,4),\"\")","v":""},null,null,{"$f":"IFERROR(INDEX(tblEvents[],SMALL(IF(Dates=R$11,ROW(Dates)),ROW(2:2))-TableRowStart,4),\"\")","v":""},null,null,{"$f":"IFERROR(INDEX(tblEvents[],SMALL(IF(Dates=U$11,ROW(Dates)),ROW(2:2))-TableRowStart,4),\"\")","v":""}]
[null,null,{"$f":"IFERROR(INDEX(tblEvents[],SMALL(IF(Dates=C$11,ROW(Dates)),ROW(3:3))-TableRowStart,4),\"\")","v":""},null,null,{"$f":"IFERROR(INDEX(tblEvents[],SMALL(IF(Dates=F$11,ROW(Dates)),ROW(3:3))-TableRowStart,4),\"\")","v":""},null,null,{"$f":"IFERROR(INDEX(tblEvents[],SMALL(IF(Dates=I$11,ROW(Dates)),ROW(3:3))-TableRowStart,4),\"\")","v":""},null,null,{"$f":"IFERROR(INDEX(tblEvents[],SMALL(IF(Dates=L$11,ROW(Dates)),ROW(3:3))-TableRowStart,4),\"\")","v":""},null,null,{"$f":"IFERROR(INDEX(tblEvents[],SMALL(IF(Dates=O$11,ROW(Dates)),ROW(3:3))-TableRowStart,4),\"\")","v":""},null,null,{"$f":"IFERROR(INDEX(tblEvents[],SMALL(IF(Dates=R$11,ROW(Dates)),ROW(3:3))-TableRowStart,4),\"\")","v":""},null,null,{"$f":"IFERROR(INDEX(tblEvents[],SMALL(IF(Dates=U$11,ROW(Dates)),ROW(3:3))-TableRowStart,4),\"\")","v":""}]
[null,null,{"$f":"IFERROR(INDEX(tblEvents[],SMALL(IF(Dates=C$11,ROW(Dates)),ROW(#REF!))-TableRowStart,4),\"\")","v":""},null,null,{"$f":"IFERROR(INDEX(tblEvents[],SMALL(IF(Dates=F$11,ROW(Dates)),ROW(#REF!))-TableRowStart,4),\"\")","v":""},null,null,{"$f":"IFERROR(INDEX(tblEvents[],SMALL(IF(Dates=I$11,ROW(Dates)),ROW(#REF!))-TableRowStart,4),\"\")","v":""},null,null,{"$f":"IFERROR(INDEX(tblEvents[],SMALL(IF(Dates=L$11,ROW(Dates)),ROW(#REF!))-TableRowStart,4),\"\")","v":""},null,null,{"$f":"IFERROR(INDEX(tblEvents[],SMALL(IF(Dates=O$11,ROW(Dates)),ROW(#REF!))-TableRowStart,4),\"\")","v":""},null,null,{"$f":"IFERROR(INDEX(tblEvents[],SMALL(IF(Dates=R$11,ROW(Dates)),ROW(#REF!))-TableRowStart,4),\"\")","v":""},null,null,{"$f":"IFERROR(INDEX(tblEvents[],SMALL(IF(Dates=U$11,ROW(Dates)),ROW(#REF!))-TableRowStart,4),\"\")","v":""}]
[null,null,{"$f":"U11+1","v":"2016-07-11"},null,null,{"$f":"C16+1","v":"2016-07-12"},null,null,{"$f":"F16+1","v":"2016-07-13"},null,null,{"$f":"I16+1","v":"2016-07-14"},null,null,{"$f":"L16+1","v":"2016-07-15"},null,null,{"$f":"O16+1","v":"2016-07-16"},null,null,{"$f":"R16+1","v":"2016-07-17"}]
[null,null,{"$f":"IFERROR(INDEX(tblEvents[],SMALL(IF(Dates=C$16,ROW(Dates)),ROW(1:1))-TableRowStart,4),\"\")","v":"Makan Siang Kamar Dagang"},null,null,{"$f":"IFERROR(INDEX(tblEvents[],SMALL(IF(Dates=F$16,ROW(Dates)),ROW(1:1))-TableRowStart,4),\"\")","v":"Pameran Barang Antik"},null,null,{"$f":"IFERROR(INDEX(tblEvents[],SMALL(IF(Dates=I$16,ROW(Dates)),ROW(1:1))-TableRowStart,4),\"\")","v":""},null,null,{"$f":"IFERROR(INDEX(tblEvents[],SMALL(IF(Dates=L$16,ROW(Dates)),ROW(1:1))-TableRowStart,4),\"\")","v":"Lokakarya Komunitas"},null,null,{"$f":"IFERROR(INDEX(tblEvents[],SMALL(IF(Dates=O$16,ROW(Dates)),ROW(1:1))-TableRowStart,4),\"\")","v":"Dewan Kota"},null,null,{"$f":"IFERROR(INDEX(tblEvents[],SMALL(IF(Dates=R$16,ROW(Dates)),ROW(1:1))-TableRowStart,4),\"\")","v":""},null,null,{"$f":"IFERROR(INDEX(tblEvents[],SMALL(IF(Dates=U$16,ROW(Dates)),ROW(1:1))-TableRowStart,4),\"\")","v":""}]
[null,null,{"$f":"IFERROR(INDEX(tblEvents[],SMALL(IF(Dates=C$16,ROW(Dates)),ROW(2:2))-TableRowStart,4),\"\")","v":""},null,null,{"$f":"IFERROR(INDEX(tblEvents[],SMALL(IF(Dates=F$16,ROW(Dates)),ROW(2:2))-TableRowStart,4),\"\")","v":""},null,null,{"$f":"IFERROR(INDEX(tblEvents[],SMALL(IF(Dates=I$16,ROW(Dates)),ROW(2:2))-TableRowStart,4),\"\")","v":""},null,null,{"$f":"IFERROR(INDEX(tblEvents[],SMALL(IF(Dates=L$16,ROW(Dates)),ROW(2:2))-TableRowStart,4),\"\")","v":""},null,null,{"$f":"IFERROR(INDEX(tblEvents[],SMALL(IF(Dates=O$16,ROW(Dates)),ROW(2:2))-TableRowStart,4),\"\")","v":""},null,null,{"$f":"IFERROR(INDEX(tblEvents[],SMALL(IF(Dates=R$16,ROW(Dates)),ROW(2:2))-TableRowStart,4),\"\")","v":""},null,null,{"$f":"IFERROR(INDEX(tblEvents[],SMALL(IF(Dates=U$16,ROW(Dates)),ROW(2:2))-TableRowStart,4),\"\")","v":""}]
[null,null,{"$f":"IFERROR(INDEX(tblEvents[],SMALL(IF(Dates=C$16,ROW(Dates)),ROW(3:3))-TableRowStart,4),\"\")","v":""},null,null,{"$f":"IFERROR(INDEX(tblEvents[],SMALL(IF(Dates=F$16,ROW(Dates)),ROW(3:3))-TableRowStart,4),\"\")","v":""},null,null,{"$f":"IFERROR(INDEX(tblEvents[],SMALL(IF(Dates=I$16,ROW(Dates)),ROW(3:3))-TableRowStart,4),\"\")","v":""},null,null,{"$f":"IFERROR(INDEX(tblEvents[],SMALL(IF(Dates=L$16,ROW(Dates)),ROW(3:3))-TableRowStart,4),\"\")","v":""},null,null,{"$f":"IFERROR(INDEX(tblEvents[],SMALL(IF(Dates=O$16,ROW(Dates)),ROW(3:3))-TableRowStart,4),\"\")","v":""},null,null,{"$f":"IFERROR(INDEX(tblEvents[],SMALL(IF(Dates=R$16,ROW(Dates)),ROW(3:3))-TableRowStart,4),\"\")","v":""},null,null,{"$f":"IFERROR(INDEX(tblEvents[],SMALL(IF(Dates=U$16,ROW(Dates)),ROW(3:3))-TableRowStart,4),\"\")","v":""}]
[null,null,{"$f":"IFERROR(INDEX(tblEvents[],SMALL(IF(Dates=C$16,ROW(Dates)),ROW(#REF!))-TableRowStart,4),\"\")","v":""},null,null,{"$f":"IFERROR(INDEX(tblEvents[],SMALL(IF(Dates=F$16,ROW(Dates)),ROW(#REF!))-TableRowStart,4),\"\")","v":""},null,null,{"$f":"IFERROR(INDEX(tblEvents[],SMALL(IF(Dates=I$16,ROW(Dates)),ROW(#REF!))-TableRowStart,4),\"\")","v":""},null,null,{"$f":"IFERROR(INDEX(tblEvents[],SMALL(IF(Dates=L$16,ROW(Dates)),ROW(#REF!))-TableRowStart,4),\"\")","v":""},null,null,{"$f":"IFERROR(INDEX(tblEvents[],SMALL(IF(Dates=O$16,ROW(Dates)),ROW(#REF!))-TableRowStart,4),\"\")","v":""},null,null,{"$f":"IFERROR(INDEX(tblEvents[],SMALL(IF(Dates=R$16,ROW(Dates)),ROW(#REF!))-TableRowStart,4),\"\")","v":""},null,null,{"$f":"IFERROR(INDEX(tblEvents[],SMALL(IF(Dates=U$16,ROW(Dates)),ROW(#REF!))-TableRowStart,4),\"\")","v":""}]
[null,null,{"$f":"U16+1","v":"2016-07-18"},null,null,{"$f":"C21+1","v":"2016-07-19"},null,null,{"$f":"F21+1","v":"2016-07-20"},null,null,{"$f":"I21+1","v":"2016-07-21"},null,null,{"$f":"L21+1","v":"2016-07-22"},null,null,{"$f":"O21+1","v":"2016-07-23"},null,null,{"$f":"R21+1","v":"2016-07-24"}]
[null,null,{"$f":"IFERROR(INDEX(tblEvents[],SMALL(IF(Dates=C$21,ROW(Dates)),ROW(1:1))-TableRowStart,4),\"\")","v":""},null,null,{"$f":"IFERROR(INDEX(tblEvents[],SMALL(IF(Dates=F$21,ROW(Dates)),ROW(1:1))-TableRowStart,4),\"\")","v":"Lokakarya Perencanaan Strategis"},null,null,{"$f":"IFERROR(INDEX(tblEvents[],SMALL(IF(Dates=I$21,ROW(Dates)),ROW(1:1))-TableRowStart,4),\"\")","v":"Pembersihan Taman"},null,null,{"$f":"IFERROR(INDEX(tblEvents[],SMALL(IF(Dates=L$21,ROW(Dates)),ROW(1:1))-TableRowStart,4),\"\")","v":""},null,null,{"$f":"IFERROR(INDEX(tblEvents[],SMALL(IF(Dates=O$21,ROW(Dates)),ROW(1:1))-TableRowStart,4),\"\")","v":"Dewan Kota"},null,null,{"$f":"IFERROR(INDEX(tblEvents[],SMALL(IF(Dates=R$21,ROW(Dates)),ROW(1:1))-TableRowStart,4),\"\")","v":""},null,null,{"$f":"IFERROR(INDEX(tblEvents[],SMALL(IF(Dates=U$21,ROW(Dates)),ROW(1:1))-TableRowStart,4),\"\")","v":""}]
[null,null,{"$f":"IFERROR(INDEX(tblEvents[],SMALL(IF(Dates=C$21,ROW(Dates)),ROW(2:2))-TableRowStart,4),\"\")","v":""},null,null,{"$f":"IFERROR(INDEX(tblEvents[],SMALL(IF(Dates=F$21,ROW(Dates)),ROW(2:2))-TableRowStart,4),\"\")","v":""},null,null,{"$f":"IFERROR(INDEX(tblEvents[],SMALL(IF(Dates=I$21,ROW(Dates)),ROW(2:2))-TableRowStart,4),\"\")","v":""},null,null,{"$f":"IFERROR(INDEX(tblEvents[],SMALL(IF(Dates=L$21,ROW(Dates)),ROW(2:2))-TableRowStart,4),\"\")","v":""},null,null,{"$f":"IFERROR(INDEX(tblEvents[],SMALL(IF(Dates=O$21,ROW(Dates)),ROW(2:2))-TableRowStart,4),\"\")","v":""},null,null,{"$f":"IFERROR(INDEX(tblEvents[],SMALL(IF(Dates=R$21,ROW(Dates)),ROW(2:2))-TableRowStart,4),\"\")","v":""},null,null,{"$f":"IFERROR(INDEX(tblEvents[],SMALL(IF(Dates=U$21,ROW(Dates)),ROW(2:2))-TableRowStart,4),\"\")","v":""}]
[null,null,{"$f":"IFERROR(INDEX(tblEvents[],SMALL(IF(Dates=C$21,ROW(Dates)),ROW(3:3))-TableRowStart,4),\"\")","v":""},null,null,{"$f":"IFERROR(INDEX(tblEvents[],SMALL(IF(Dates=F$21,ROW(Dates)),ROW(3:3))-TableRowStart,4),\"\")","v":""},null,null,{"$f":"IFERROR(INDEX(tblEvents[],SMALL(IF(Dates=I$21,ROW(Dates)),ROW(3:3))-TableRowStart,4),\"\")","v":""},null,null,{"$f":"IFERROR(INDEX(tblEvents[],SMALL(IF(Dates=L$21,ROW(Dates)),ROW(3:3))-TableRowStart,4),\"\")","v":""},null,null,{"$f":"IFERROR(INDEX(tblEvents[],SMALL(IF(Dates=O$21,ROW(Dates)),ROW(3:3))-TableRowStart,4),\"\")","v":""},null,null,{"$f":"IFERROR(INDEX(tblEvents[],SMALL(IF(Dates=R$21,ROW(Dates)),ROW(3:3))-TableRowStart,4),\"\")","v":""},null,null,{"$f":"IFERROR(INDEX(tblEvents[],SMALL(IF(Dates=U$21,ROW(Dates)),ROW(3:3))-TableRowStart,4),\"\")","v":""}]
[null,null,{"$f":"IFERROR(INDEX(tblEvents[],SMALL(IF(Dates=C$21,ROW(Dates)),ROW(#REF!))-TableRowStart,4),\"\")","v":""},null,null,{"$f":"IFERROR(INDEX(tblEvents[],SMALL(IF(Dates=F$21,ROW(Dates)),ROW(#REF!))-TableRowStart,4),\"\")","v":""},null,null,{"$f":"IFERROR(INDEX(tblEvents[],SMALL(IF(Dates=I$21,ROW(Dates)),ROW(#REF!))-TableRowStart,4),\"\")","v":""},null,null,{"$f":"IFERROR(INDEX(tblEvents[],SMALL(IF(Dates=L$21,ROW(Dates)),ROW(#REF!))-TableRowStart,4),\"\")","v":""},null,null,{"$f":"IFERROR(INDEX(tblEvents[],SMALL(IF(Dates=O$21,ROW(Dates)),ROW(#REF!))-TableRowStart,4),\"\")","v":""},null,null,{"$f":"IFERROR(INDEX(tblEvents[],SMALL(IF(Dates=R$21,ROW(Dates)),ROW(#REF!))-TableRowStart,4),\"\")","v":""},null,null,{"$f":"IFERROR(INDEX(tblEvents[],SMALL(IF(Dates=U$21,ROW(Dates)),ROW(#REF!))-TableRowStart,4),\"\")","v":""}]
[null,null,{"$f":"U21+1","v":"2016-07-25"},null,null,{"$f":"C26+1","v":"2016-07-26"},null,null,{"$f":"F26+1","v":"2016-07-27"},null,null,{"$f":"I26+1","v":"2016-07-28"},null,null,{"$f":"L26+1","v":"2016-07-29"},null,null,{"$f":"O26+1","v":"2016-07-30"},null,null,{"$f":"R26+1","v":"2016-07-31"}]
[null,null,{"$f":"IFERROR(INDEX(tblEvents[],SMALL(IF(Dates=C$26,ROW(Dates)),ROW(1:1))-TableRowStart,4),\"\")","v":""},null,null,{"$f":"IFERROR(INDEX(tblEvents[],SMALL(IF(Dates=F$26,ROW(Dates)),ROW(1:1))-TableRowStart,4),\"\")","v":"Tur Jalan Kaki Pusat Kota"},null,null,{"$f":"IFERROR(INDEX(tblEvents[],SMALL(IF(Dates=I$26,ROW(Dates)),ROW(1:1))-TableRowStart,4),\"\")","v":""},null,null,{"$f":"IFERROR(INDEX(tblEvents[],SMALL(IF(Dates=L$26,ROW(Dates)),ROW(1:1))-TableRowStart,4),\"\")","v":""},null,null,{"$f":"IFERROR(INDEX(tblEvents[],SMALL(IF(Dates=O$26,ROW(Dates)),ROW(1:1))-TableRowStart,4),\"\")","v":"Dewan Kota"},null,null,{"$f":"IFERROR(INDEX(tblEvents[],SMALL(IF(Dates=R$26,ROW(Dates)),ROW(1:1))-TableRowStart,4),\"\")","v":""},null,null,{"$f":"IFERROR(INDEX(tblEvents[],SMALL(IF(Dates=U$26,ROW(Dates)),ROW(1:1))-TableRowStart,4),\"\")","v":""}]
[null,null,{"$f":"IFERROR(INDEX(tblEvents[],SMALL(IF(Dates=C$26,ROW(Dates)),ROW(2:2))-TableRowStart,4),\"\")","v":""},null,null,{"$f":"IFERROR(INDEX(tblEvents[],SMALL(IF(Dates=F$26,ROW(Dates)),ROW(2:2))-TableRowStart,4),\"\")","v":"Perayapan Pub"},null,null,{"$f":"IFERROR(INDEX(tblEvents[],SMALL(IF(Dates=I$26,ROW(Dates)),ROW(2:2))-TableRowStart,4),\"\")","v":""},null,null,{"$f":"IFERROR(INDEX(tblEvents[],SMALL(IF(Dates=L$26,ROW(Dates)),ROW(2:2))-TableRowStart,4),\"\")","v":""},null,null,{"$f":"IFERROR(INDEX(tblEvents[],SMALL(IF(Dates=O$26,ROW(Dates)),ROW(2:2))-TableRowStart,4),\"\")","v":""},null,null,{"$f":"IFERROR(INDEX(tblEvents[],SMALL(IF(Dates=R$26,ROW(Dates)),ROW(2:2))-TableRowStart,4),\"\")","v":""},null,null,{"$f":"IFERROR(INDEX(tblEvents[],SMALL(IF(Dates=U$26,ROW(Dates)),ROW(2:2))-TableRowStart,4),\"\")","v":""}]
[null,null,{"$f":"IFERROR(INDEX(tblEvents[],SMALL(IF(Dates=C$26,ROW(Dates)),ROW(3:3))-TableRowStart,4),\"\")","v":""},null,null,{"$f":"IFERROR(INDEX(tblEvents[],SMALL(IF(Dates=F$26,ROW(Dates)),ROW(3:3))-TableRowStart,4),\"\")","v":""},null,null,{"$f":"IFERROR(INDEX(tblEvents[],SMALL(IF(Dates=I$26,ROW(Dates)),ROW(3:3))-TableRowStart,4),\"\")","v":""},null,null,{"$f":"IFERROR(INDEX(tblEvents[],SMALL(IF(Dates=L$26,ROW(Dates)),ROW(3:3))-TableRowStart,4),\"\")","v":""},null,null,{"$f":"IFERROR(INDEX(tblEvents[],SMALL(IF(Dates=O$26,ROW(Dates)),ROW(3:3))-TableRowStart,4),\"\")","v":""},null,null,{"$f":"IFERROR(INDEX(tblEvents[],SMALL(IF(Dates=R$26,ROW(Dates)),ROW(3:3))-TableRowStart,4),\"\")","v":""},null,null,{"$f":"IFERROR(INDEX(tblEvents[],SMALL(IF(Dates=U$26,ROW(Dates)),ROW(3:3))-TableRowStart,4),\"\")","v":""}]
[null,null,{"$f":"IFERROR(INDEX(tblEvents[],SMALL(IF(Dates=C$26,ROW(Dates)),ROW(#REF!))-TableRowStart,4),\"\")","v":""},null,null,{"$f":"IFERROR(INDEX(tblEvents[],SMALL(IF(Dates=F$26,ROW(Dates)),ROW(#REF!))-TableRowStart,4),\"\")","v":""},null,null,{"$f":"IFERROR(INDEX(tblEvents[],SMALL(IF(Dates=I$26,ROW(Dates)),ROW(#REF!))-TableRowStart,4),\"\")","v":""},null,null,{"$f":"IFERROR(INDEX(tblEvents[],SMALL(IF(Dates=L$26,ROW(Dates)),ROW(#REF!))-TableRowStart,4),\"\")","v":""},null,null,{"$f":"IFERROR(INDEX(tblEvents[],SMALL(IF(Dates=O$26,ROW(Dates)),ROW(#REF!))-TableRowStart,4),\"\")","v":""},null,null,{"$f":"IFERROR(INDEX(tblEvents[],SMALL(IF(Dates=R$26,ROW(Dates)),ROW(#REF!))-TableRowStart,4),\"\")","v":""},null,null,{"$f":"IFERROR(INDEX(tblEvents[],SMALL(IF(Dates=U$26,ROW(Dates)),ROW(#REF!))-TableRowStart,4),\"\")","v":""}]
[null,null,{"$f":"U26+1","v":"2016-08-01"},null,null,{"$f":"C31+1","v":"2016-08-02"},null,null,"CATATAN:"]
[null,null,{"$f":"IFERROR(INDEX(tblEvents[],SMALL(IF(Dates=C$31,ROW(Dates)),ROW(1:1))-TableRowStart,4),\"\")","v":""},null,null,{"$f":"IFERROR(INDEX(tblEvents[],SMALL(IF(Dates=F$31,ROW(Dates)),ROW(1:1))-TableRowStart,4),\"\")","v":""}]
[null,null,{"$f":"IFERROR(INDEX(tblEvents[],SMALL(IF(Dates=C$31,ROW(Dates)),ROW(2:2))-TableRowStart,4),\"\")","v":""},null,null,{"$f":"IFERROR(INDEX(tblEvents[],SMALL(IF(Dates=F$31,ROW(Dates)),ROW(2:2))-TableRowStart,4),\"\")","v":""}]
[null,null,{"$f":"IFERROR(INDEX(tblEvents[],SMALL(IF(Dates=C$31,ROW(Dates)),ROW(3:3))-TableRowStart,4),\"\")","v":""},null,null,{"$f":"IFERROR(INDEX(tblEvents[],SMALL(IF(Dates=F$31,ROW(Dates)),ROW(3:3))-TableRowStart,4),\"\")","v":""}]
[null,null,{"$f":"IFERROR(INDEX(tblEvents[],SMALL(IF(Dates=C$31,ROW(Dates)),ROW(#REF!))-TableRowStart,4),\"\")","v":""},null,null,{"$f":"IFERROR(INDEX(tblEvents[],SMALL(IF(Dates=F$31,ROW(Dates)),ROW(#REF!))-TableRowStart,4),\"\")","v":""}]

{"sheet":"VERSI CETAK","index":2,"n_rows":35,"n_cols":21,"rows_kept":35,"merged":[[1,5,1,11],[30,8,34,20]]}
[]
[null,null,{"$f":"ViewYear","v":2016},null,null,{"$f":"ViewMonth","v":"JULI"},{"$f":"KALENDER!G2","v":0},{"$f":"KALENDER!H2","v":0},{"$f":"KALENDER!I2","v":0},{"$f":"KALENDER!J2","v":0},{"$f":"KALENDER!K2","v":0},{"$f":"KALENDER!L2","v":0}]
[]
[null,null,"SEN",null,null,"SEL",null,null,"RAB",null,null,"KAM",null,null,"JUM",null,null,"SAB",null,null,"MIN"]
[]
[null,null,{"$f":"KALENDER!C6","v":"2016-06-27"},{"$f":"KALENDER!D6","v":0},{"$f":"KALENDER!E6","v":0},{"$f":"KALENDER!F6","v":"2016-06-28"},{"$f":"KALENDER!G6","v":0},{"$f":"KALENDER!H6","v":0},{"$f":"KALENDER!I6","v":"2016-06-29"},{"$f":"KALENDER!J6","v":0},{"$f":"KALENDER!K6","v":0},{"$f":"KALENDER!L6","v":"2016-06-30"},{"$f":"KALENDER!M6","v":0},{"$f":"KALENDER!N6","v":0},{"$f":"KALENDER!O6","v":"2016-07-01"},{"$f":"KALENDER!P6","v":0},{"$f":"KALENDER!Q6","v":0},{"$f":"KALENDER!R6","v":"2016-07-02"},{"$f":"KALENDER!S6","v":0},{"$f":"KALENDER!T6","v":0},{"$f":"KALENDER!U6","v":"2016-07-03"}]
[null,null,{"$f":"KALENDER!C7","v":""},{"$f":"KALENDER!D7","v":0},{"$f":"KALENDER!E7","v":0},{"$f":"KALENDER!F7","v":""},{"$f":"KALENDER!G7","v":0},{"$f":"KALENDER!H7","v":0},{"$f":"KALENDER!I7","v":""},{"$f":"KALENDER!J7","v":0},{"$f":"KALENDER!K7","v":0},{"$f":"KALENDER!L7","v":""},{"$f":"KALENDER!M7","v":0},{"$f":"KALENDER!N7","v":0},{"$f":"KALENDER!O7","v":"Kebun Komunitas"},{"$f":"KALENDER!P7","v":0},{"$f":"KALENDER!Q7","v":0},{"$f":"KALENDER!R7","v":"Kebun Komunitas"},{"$f":"KALENDER!S7","v":0},{"$f":"KALENDER!T7","v":0},{"$f":"KALENDER!U7","v":"Malam Film di Taman"}]
[null,null,{"$f":"KALENDER!C8","v":""},{"$f":"KALENDER!D8","v":"00:00:00"},{"$f":"KALENDER!E8","v":"00:00:00"},{"$f":"KALENDER!F8","v":""},{"$f":"KALENDER!G8","v":"00:00:00"},{"$f":"KALENDER!H8","v":"00:00:00"},{"$f":"KALENDER!I8","v":""},{"$f":"KALENDER!J8","v":"00:00:00"},{"$f":"KALENDER!K8","v":"00:00:00"},{"$f":"KALENDER!L8","v":""},{"$f":"KALENDER!M8","v":"00:00:00"},{"$f":"KALENDER!N8","v":"00:00:00"},{"$f":"KALENDER!O8","v":"Dewan Kota"},{"$f":"KALENDER!P8","v":"00:00:00"},{"$f":"KALENDER!Q8","v":"00:00:00"},{"$f":"KALENDER!R8","v":""},{"$f":"KALENDER!S8","v":"00:00:00"},{"$f":"KALENDER!T8","v":"00:00:00"},{"$f":"KALENDER!U8","v":""}]
[null,null,{"$f":"KALENDER!C9","v":""},{"$f":"KALENDER!D9","v":0},{"$f":"KALENDER!E9","v":0},{"$f":"KALENDER!F9","v":""},{"$f":"KALENDER!G9","v":0},{"$f":"KALENDER!H9","v":0},{"$f":"KALENDER!I9","v":""},{"$f":"KALENDER!J9","v":0},{"$f":"KALENDER!K9","v":0},{"$f":"KALENDER!L9","v":""},{"$f":"KALENDER!M9","v":0},{"$f":"KALENDER!N9","v":0},{"$f":"KALENDER!O9","v":""},{"$f":"KALENDER!P9","v":0},{"$f":"KALENDER!Q9","v":0},{"$f":"KALENDER!R9","v":""},{"$f":"KALENDER!S9","v":0},{"$f":"KALENDER!T9","v":0},{"$f":"KALENDER!U9","v":""}]
[null,null,{"$f":"KALENDER!C10","v":""},{"$f":"KALENDER!D10","v":0},{"$f":"KALENDER!E10","v":0},{"$f":"KALENDER!F10","v":""},{"$f":"KALENDER!G10","v":0},{"$f":"KALENDER!H10","v":0},{"$f":"KALENDER!I10","v":""},{"$f":"KALENDER!J10","v":0},{"$f":"KALENDER!K10","v":0},{"$f":"KALENDER!L10","v":""},{"$f":"KALENDER!M10","v":0},{"$f":"KALENDER!N10","v":0},{"$f":"KALENDER!O10","v":""},{"$f":"KALENDER!P10","v":0},{"$f":"KALENDER!Q10","v":0},{"$f":"KALENDER!R10","v":""},{"$f":"KALENDER!S10","v":0},{"$f":"KALENDER!T10","v":0},{"$f":"KALENDER!U10","v":""}]
[null,null,{"$f":"KALENDER!C11","v":"2016-07-04"},{"$f":"KALENDER!D11","v":0},{"$f":"KALENDER!E11","v":0},{"$f":"KALENDER!F11","v":"2016-07-05"},{"$f":"KALENDER!G11","v":0},{"$f":"KALENDER!H11","v":0},{"$f":"KALENDER!I11","v":"2016-07-06"},{"$f":"KALENDER!J11","v":0},{"$f":"KALENDER!K11","v":0},{"$f":"KALENDER!L11","v":"2016-07-07"},{"$f":"KALENDER!M11","v":0},{"$f":"KALENDER!N11","v":0},{"$f":"KALENDER!O11","v":"2016-07-08"},{"$f":"KALENDER!P11","v":0},{"$f":"KALENDER!Q11","v":0},{"$f":"KALENDER!R11","v":"2016-07-09"},{"$f":"KALENDER!S11","v":0},{"$f":"KALENDER!T11","v":0},{"$f":"KALENDER!U11","v":"2016-07-10"}]
[null,null,{"$f":"KALENDER!C12","v":""},{"$f":"KALENDER!D12","v":0},{"$f":"KALENDER!E12","v":0},{"$f":"KALENDER!F12","v":""},{"$f":"KALENDER!G12","v":0},{"$f":"KALENDER!H12","v":0},{"$f":"KALENDER!I12","v":""},{"$f":"KALENDER!J12","v":0},{"$f":"KALENDER!K12","v":0},{"$f":"KALENDER!L12","v":""},{"$f":"KALENDER!M12","v":0},{"$f":"KALENDER!N12","v":0},{"$f":"KALENDER!O12","v":"Dewan Kota"},{"$f":"KALENDER!P12","v":0},{"$f":"KALENDER!Q12","v":0},{"$f":"KALENDER!R12","v":""},{"$f":"KALENDER!S12","v":0},{"$f":"KALENDER!T12","v":0},{"$f":"KALENDER!U12","v":""}]
[null,null,{"$f":"KALENDER!C13","v":""},{"$f":"KALENDER!D13","v":0},{"$f":"KALENDER!E13","v":0},{"$f":"KALENDER!F13","v":""},{"$f":"KALENDER!G13","v":0},{"$f":"KALENDER!H13","v":0},{"$f":"KALENDER!I13","v":""},{"$f":"KALENDER!J13","v":0},{"$f":"KALENDER!K13","v":0},{"$f":"KALENDER!L13","v":""},{"$f":"KALENDER!M13","v":0},{"$f":"KALENDER!N13","v":0},{"$f":"KALENDER!O13","v":""},{"$f":"KALENDER!P13","v":0},{"$f":"KALENDER!Q13","v":0},{"$f":"KALENDER!R13","v":""},{"$f":"KALENDER!S13","v":0},{"$f":"KALENDER!T13","v":0},{"$f":"KALENDER!U13","v":""}]
[null,null,{"$f":"KALENDER!C14","v":""},{"$f":"KALENDER!D14","v":0},{"$f":"KALENDER!E14","v":0},{"$f":"KALENDER!F14","v":""},{"$f":"KALENDER!G14","v":0},{"$f":"KALENDER!H14","v":0},{"$f":"KALENDER!I14","v":""},{"$f":"KALENDER!J14","v":0},{"$f":"KALENDER!K14","v":0},{"$f":"KALENDER!L14","v":""},{"$f":"KALENDER!M14","v":0},{"$f":"KALENDER!N14","v":0},{"$f":"KALENDER!O14","v":""},{"$f":"KALENDER!P14","v":0},{"$f":"KALENDER!Q14","v":0},{"$f":"KALENDER!R14","v":""},{"$f":"KALENDER!S14","v":0},{"$f":"KALENDER!T14","v":0},{"$f":"KALENDER!U14","v":""}]
[null,null,{"$f":"KALENDER!C15","v":""},{"$f":"KALENDER!D15","v":0},{"$f":"KALENDER!E15","v":0},{"$f":"KALENDER!F15","v":""},{"$f":"KALENDER!G15","v":0},{"$f":"KALENDER!H15","v":0},{"$f":"KALENDER!I15","v":""},{"$f":"KALENDER!J15","v":0},{"$f":"KALENDER!K15","v":0},{"$f":"KALENDER!L15","v":""},{"$f":"KALENDER!M15","v":0},{"$f":"KALENDER!N15","v":0},{"$f":"KALENDER!O15","v":""},{"$f":"KALENDER!P15","v":0},{"$f":"KALENDER!Q15","v":0},{"$f":"KALENDER!R15","v":""},{"$f":"KALENDER!S15","v":0},{"$f":"KALENDER!T15","v":0},{"$f":"KALENDER!U15","v":""}]
[null,null,{"$f":"KALENDER!C16","v":"2016-07-11"},{"$f":"KALENDER!D16","v":0},{"$f":"KALENDER!E16","v":0},{"$f":"KALENDER!F16","v":"2016-07-12"},{"$f":"KALENDER!G16","v":0},{"$f":"KALENDER!H16","v":0},{"$f":"KALENDER!I16","v":"2016-07-13"},{"$f":"KALENDER!J16","v":0},{"$f":"KALENDER!K16","v":0},{"$f":"KALENDER!L16","v":"2016-07-14"},{"$f":"KALENDER!M16","v":0},{"$f":"KALENDER!N16","v":0},{"$f":"KALENDER!O16","v":"2016-07-15"},{"$f":"KALENDER!P16","v":0},{"$f":"KALENDER!Q16","v":0},{"$f":"KALENDER!R16","v":"2016-07-16"},{"$f":"KALENDER!S16","v":0},{"$f":"KALENDER!T16","v":0},{"$f":"KALENDER!U16","v":"2016-07-17"}]
[null,null,{"$f":"KALENDER!C17","v":"Makan Siang Kamar Dagang"},{"$f":"KALENDER!D17","v":0},{"$f":"KALENDER!E17","v":0},{"$f":"KALENDER!F17","v":"Pameran Barang Antik"},{"$f":"KALENDER!G17","v":0},{"$f":"KALENDER!H17","v":0},{"$f":"KALENDER!I17","v":""},{"$f":"KALENDER!J17","v":0},{"$f":"KALENDER!K17","v":0},{"$f":"KALENDER!L17","v":"Lokakarya Komunitas"},{"$f":"KALENDER!M17","v":0},{"$f":"KALENDER!N17","v":0},{"$f":"KALENDER!O17","v":"Dewan Kota"},{"$f":"KALENDER!P17","v":0},{"$f":"KALENDER!Q17","v":0},{"$f":"KALENDER!R17","v":""},{"$f":"KALENDER!S17","v":0},{"$f":"KALENDER!T17","v":0},{"$f":"KALENDER!U17","v":""}]
[null,null,{"$f":"KALENDER!C18","v":""},{"$f":"KALENDER!D18","v":0},{"$f":"KALENDER!E18","v":0},{"$f":"KALENDER!F18","v":""},{"$f":"KALENDER!G18","v":0},{"$f":"KALENDER!H18","v":0},{"$f":"KALENDER!I18","v":""},{"$f":"KALENDER!J18","v":0},{"$f":"KALENDER!K18","v":0},{"$f":"KALENDER!L18","v":""},{"$f":"KALENDER!M18","v":0},{"$f":"KALENDER!N18","v":0},{"$f":"KALENDER!O18","v":""},{"$f":"KALENDER!P18","v":0},{"$f":"KALENDER!Q18","v":0},{"$f":"KALENDER!R18","v":""},{"$f":"KALENDER!S18","v":0},{"$f":"KALENDER!T18","v":0},{"$f":"KALENDER!U18","v":""}]
[null,null,{"$f":"KALENDER!C19","v":""},{"$f":"KALENDER!D19","v":0},{"$f":"KALENDER!E19","v":0},{"$f":"KALENDER!F19","v":""},{"$f":"KALENDER!G19","v":0},{"$f":"KALENDER!H19","v":0},{"$f":"KALENDER!I19","v":""},{"$f":"KALENDER!J19","v":0},{"$f":"KALENDER!K19","v":0},{"$f":"KALENDER!L19","v":""},{"$f":"KALENDER!M19","v":0},{"$f":"KALENDER!N19","v":0},{"$f":"KALENDER!O19","v":""},{"$f":"KALENDER!P19","v":0},{"$f":"KALENDER!Q19","v":0},{"$f":"KALENDER!R19","v":""},{"$f":"KALENDER!S19","v":0},{"$f":"KALENDER!T19","v":0},{"$f":"KALENDER!U19","v":""}]
[null,null,{"$f":"KALENDER!C20","v":""},{"$f":"KALENDER!D20","v":0},{"$f":"KALENDER!E20","v":0},{"$f":"KALENDER!F20","v":""},{"$f":"KALENDER!G20","v":0},{"$f":"KALENDER!H20","v":0},{"$f":"KALENDER!I20","v":""},{"$f":"KALENDER!J20","v":0},{"$f":"KALENDER!K20","v":0},{"$f":"KALENDER!L20","v":""},{"$f":"KALENDER!M20","v":0},{"$f":"KALENDER!N20","v":0},{"$f":"KALENDER!O20","v":""},{"$f":"KALENDER!P20","v":0},{"$f":"KALENDER!Q20","v":0},{"$f":"KALENDER!R20","v":""},{"$f":"KALENDER!S20","v":0},{"$f":"KALENDER!T20","v":0},{"$f":"KALENDER!U20","v":""}]
[null,null,{"$f":"KALENDER!C21","v":"2016-07-18"},{"$f":"KALENDER!D21","v":0},{"$f":"KALENDER!E21","v":0},{"$f":"KALENDER!F21","v":"2016-07-19"},{"$f":"KALENDER!G21","v":0},{"$f":"KALENDER!H21","v":0},{"$f":"KALENDER!I21","v":"2016-07-20"},{"$f":"KALENDER!J21","v":0},{"$f":"KALENDER!K21","v":0},{"$f":"KALENDER!L21","v":"2016-07-21"},{"$f":"KALENDER!M21","v":0},{"$f":"KALENDER!N21","v":0},{"$f":"KALENDER!O21","v":"2016-07-22"},{"$f":"KALENDER!P21","v":0},{"$f":"KALENDER!Q21","v":0},{"$f":"KALENDER!R21","v":"2016-07-23"},{"$f":"KALENDER!S21","v":0},{"$f":"KALENDER!T21","v":0},{"$f":"KALENDER!U21","v":"2016-07-24"}]
[null,null,{"$f":"KALENDER!C22","v":""},{"$f":"KALENDER!D22","v":0},{"$f":"KALENDER!E22","v":0},{"$f":"KALENDER!F22","v":"Lokakarya Perencanaan Strategis"},{"$f":"KALENDER!G22","v":0},{"$f":"KALENDER!H22","v":0},{"$f":"KALENDER!I22","v":"Pembersihan Taman"},{"$f":"KALENDER!J22","v":0},{"$f":"KALENDER!K22","v":0},{"$f":"KALENDER!L22","v":""},{"$f":"KALENDER!M22","v":0},{"$f":"KALENDER!N22","v":0},{"$f":"KALENDER!O22","v":"Dewan Kota"},{"$f":"KALENDER!P22","v":0},{"$f":"KALENDER!Q22","v":0},{"$f":"KALENDER!R22","v":""},{"$f":"KALENDER!S22","v":0},{"$f":"KALENDER!T22","v":0},{"$f":"KALENDER!U22","v":""}]
[null,null,{"$f":"KALENDER!C23","v":""},{"$f":"KALENDER!D23","v":0},{"$f":"KALENDER!E23","v":0},{"$f":"KALENDER!F23","v":""},{"$f":"KALENDER!G23","v":0},{"$f":"KALENDER!H23","v":0},{"$f":"KALENDER!I23","v":""},{"$f":"KALENDER!J23","v":0},{"$f":"KALENDER!K23","v":0},{"$f":"KALENDER!L23","v":""},{"$f":"KALENDER!M23","v":0},{"$f":"KALENDER!N23","v":0},{"$f":"KALENDER!O23","v":""},{"$f":"KALENDER!P23","v":0},{"$f":"KALENDER!Q23","v":0},{"$f":"KALENDER!R23","v":""},{"$f":"KALENDER!S23","v":0},{"$f":"KALENDER!T23","v":0},{"$f":"KALENDER!U23","v":""}]
[null,null,{"$f":"KALENDER!C24","v":""},{"$f":"KALENDER!D24","v":0},{"$f":"KALENDER!E24","v":0},{"$f":"KALENDER!F24","v":""},{"$f":"KALENDER!G24","v":0},{"$f":"KALENDER!H24","v":0},{"$f":"KALENDER!I24","v":""},{"$f":"KALENDER!J24","v":0},{"$f":"KALENDER!K24","v":0},{"$f":"KALENDER!L24","v":""},{"$f":"KALENDER!M24","v":0},{"$f":"KALENDER!N24","v":0},{"$f":"KALENDER!O24","v":""},{"$f":"KALENDER!P24","v":0},{"$f":"KALENDER!Q24","v":0},{"$f":"KALENDER!R24","v":""},{"$f":"KALENDER!S24","v":0},{"$f":"KALENDER!T24","v":0},{"$f":"KALENDER!U24","v":""}]
[null,null,{"$f":"KALENDER!C25","v":""},{"$f":"KALENDER!D25","v":0},{"$f":"KALENDER!E25","v":0},{"$f":"KALENDER!F25","v":""},{"$f":"KALENDER!G25","v":0},{"$f":"KALENDER!H25","v":0},{"$f":"KALENDER!I25","v":""},{"$f":"KALENDER!J25","v":0},{"$f":"KALENDER!K25","v":0},{"$f":"KALENDER!L25","v":""},{"$f":"KALENDER!M25","v":0},{"$f":"KALENDER!N25","v":0},{"$f":"KALENDER!O25","v":""},{"$f":"KALENDER!P25","v":0},{"$f":"KALENDER!Q25","v":0},{"$f":"KALENDER!R25","v":""},{"$f":"KALENDER!S25","v":0},{"$f":"KALENDER!T25","v":0},{"$f":"KALENDER!U25","v":""}]
[null,null,{"$f":"KALENDER!C26","v":"2016-07-25"},{"$f":"KALENDER!D26","v":0},{"$f":"KALENDER!E26","v":0},{"$f":"KALENDER!F26","v":"2016-07-26"},{"$f":"KALENDER!G26","v":0},{"$f":"KALENDER!H26","v":0},{"$f":"KALENDER!I26","v":"2016-07-27"},{"$f":"KALENDER!J26","v":0},{"$f":"KALENDER!K26","v":0},{"$f":"KALENDER!L26","v":"2016-07-28"},{"$f":"KALENDER!M26","v":0},{"$f":"KALENDER!N26","v":0},{"$f":"KALENDER!O26","v":"2016-07-29"},{"$f":"KALENDER!P26","v":0},{"$f":"KALENDER!Q26","v":0},{"$f":"KALENDER!R26","v":"2016-07-30"},{"$f":"KALENDER!S26","v":0},{"$f":"KALENDER!T26","v":0},{"$f":"KALENDER!U26","v":"2016-07-31"}]
[null,null,{"$f":"KALENDER!C27","v":""},{"$f":"KALENDER!D27","v":0},{"$f":"KALENDER!E27","v":0},{"$f":"KALENDER!F27","v":"Tur Jalan Kaki Pusat Kota"},{"$f":"KALENDER!G27","v":0},{"$f":"KALENDER!H27","v":0},{"$f":"KALENDER!I27","v":""},{"$f":"KALENDER!J27","v":0},{"$f":"KALENDER!K27","v":0},{"$f":"KALENDER!L27","v":""},{"$f":"KALENDER!M27","v":0},{"$f":"KALENDER!N27","v":0},{"$f":"KALENDER!O27","v":"Dewan Kota"},{"$f":"KALENDER!P27","v":0},{"$f":"KALENDER!Q27","v":0},{"$f":"KALENDER!R27","v":""},{"$f":"KALENDER!S27","v":0},{"$f":"KALENDER!T27","v":0},{"$f":"KALENDER!U27","v":""}]
[null,null,{"$f":"KALENDER!C28","v":""},{"$f":"KALENDER!D28","v":0},{"$f":"KALENDER!E28","v":0},{"$f":"KALENDER!F28","v":"Perayapan Pub"},{"$f":"KALENDER!G28","v":0},{"$f":"KALENDER!H28","v":0},{"$f":"KALENDER!I28","v":""},{"$f":"KALENDER!J28","v":0},{"$f":"KALENDER!K28","v":0},{"$f":"KALENDER!L28","v":""},{"$f":"KALENDER!M28","v":0},{"$f":"KALENDER!N28","v":0},{"$f":"KALENDER!O28","v":""},{"$f":"KALENDER!P28","v":0},{"$f":"KALENDER!Q28","v":0},{"$f":"KALENDER!R28","v":""},{"$f":"KALENDER!S28","v":0},{"$f":"KALENDER!T28","v":0},{"$f":"KALENDER!U28","v":""}]
[null,null,{"$f":"KALENDER!C29","v":""},{"$f":"KALENDER!D29","v":0},{"$f":"KALENDER!E29","v":0},{"$f":"KALENDER!F29","v":""},{"$f":"KALENDER!G29","v":0},{"$f":"KALENDER!H29","v":0},{"$f":"KALENDER!I29","v":""},{"$f":"KALENDER!J29","v":0},{"$f":"KALENDER!K29","v":0},{"$f":"KALENDER!L29","v":""},{"$f":"KALENDER!M29","v":0},{"$f":"KALENDER!N29","v":0},{"$f":"KALENDER!O29","v":""},{"$f":"KALENDER!P29","v":0},{"$f":"KALENDER!Q29","v":0},{"$f":"KALENDER!R29","v":""},{"$f":"KALENDER!S29","v":0},{"$f":"KALENDER!T29","v":0},{"$f":"KALENDER!U29","v":""}]
[null,null,{"$f":"KALENDER!C30","v":""},{"$f":"KALENDER!D30","v":0},{"$f":"KALENDER!E30","v":0},{"$f":"KALENDER!F30","v":""},{"$f":"KALENDER!G30","v":0},{"$f":"KALENDER!H30","v":0},{"$f":"KALENDER!I30","v":""},{"$f":"KALENDER!J30","v":0},{"$f":"KALENDER!K30","v":0},{"$f":"KALENDER!L30","v":""},{"$f":"KALENDER!M30","v":0},{"$f":"KALENDER!N30","v":0},{"$f":"KALENDER!O30","v":""},{"$f":"KALENDER!P30","v":0},{"$f":"KALENDER!Q30","v":0},{"$f":"KALENDER!R30","v":""},{"$f":"KALENDER!S30","v":0},{"$f":"KALENDER!T30","v":0},{"$f":"KALENDER!U30","v":""}]
[null,null,{"$f":"KALENDER!C31","v":"2016-08-01"},{"$f":"KALENDER!D31","v":0},{"$f":"KALENDER!E31","v":0},{"$f":"KALENDER!F31","v":"2016-08-02"},null,null,{"$f":"KALENDER!I31","v":"CATATAN:"}]
[null,null,{"$f":"KALENDER!C32","v":""},{"$f":"KALENDER!D32","v":0},{"$f":"KALENDER!E32","v":0},{"$f":"KALENDER!F32","v":""}]
[null,null,{"$f":"KALENDER!C33","v":""},{"$f":"KALENDER!D33","v":0},{"$f":"KALENDER!E33","v":0},{"$f":"KALENDER!F33","v":""}]
[null,null,{"$f":"KALENDER!C34","v":""},{"$f":"KALENDER!D34","v":0},{"$f":"KALENDER!E34","v":0},{"$f":"KALENDER!F34","v":""}]
[null,null,{"$f":"KALENDER!C35","v":""},{"$f":"KALENDER!D35","v":0},{"$f":"KALENDER!E35","v":0},{"$f":"KALENDER!F35","v":""}]

{"sheet":"ADMIN","index":3,"n_rows":14,"n_cols":3,"rows_kept":14,"hidden":true}
[]
[null,"MONTH","NUMBER"]
[null,"JANUARI",1]
[null,"FEBRUARI",2]
[null,"MARET",3]
[null,"APRIL",4]
[null,"MEI",5]
[null,"JUNI",6]
[null,"JULI",7]
[null,"AGUSTUS",8]
[null,"SEPTEMBER",9]
[null,"OKTOBER",10]
[null,"NOVEMBER",11]
[null,"DESEMBER",12]